bitfinex-derivatives/quotes_BTCF0:USTF0_20250416
["timestamp","ask_amount","ask_price","bid_price","bid_amount"]
[1744830377520,0.087,84155.0,84154.0,0.1188273]
[1744830378322,0.087,84155.0,84154.0,0.1288273]
[1744830378323,8e-05,84155.0,84154.0,0.1288273]
[1744830378517,0.001,84159.0,84158.0,0.1188217]
[1744830378722,0.001,84159.0,84158.0,0.1488217]
[1744830378920,0.1198203,84159.0,84158.0,0.1488217]
[1744830379117,0.1199003,84159.0,84158.0,0.2934217]
[1744830379312,0.1188231,84157.0,84156.0,0.3608]
[1744830379533,0.1188231,84157.0,84156.0,0.4796245]
[1744830379713,0.1188231,84157.0,84156.0,0.4797045]
[1744830379912,0.2047231,84157.0,84156.0,0.4797045]
[1744830380924,0.2067231,84157.0,84156.0,0.4797045]
[1744830381119,0.2077231,84157.0,84156.0,0.4797045]
[1744830381717,0.2077231,84157.0,84156.0,0.36088]
[1744830381917,0.2077231,84157.0,84156.0,0.3608]
[1744830382122,0.1188316,84151.0,84150.0,0.1188322]
[1744830382820,0.0594164,84151.0,84147.0,0.00525587]
[1744830383126,0.1188358,84148.0,84147.0,0.12409307]
[1744830383518,0.1188358,84148.0,84147.0,0.20419307]
[1744830384334,0.1188358,84148.0,84147.0,0.00625587]
[1744830384529,0.1188358,84148.0,84140.0,0.0867]
[1744830384530,0.4796358,84148.0,84140.0,0.0867]
[1744830384827,0.1188457,84141.0,84140.0,0.0001458]
[1744830385026,0.1188584,84132.0,84131.0,0.2055585]
[1744830385215,0.0594253,84138.0,84137.0,0.1782735]
[1744830385421,0.0594253,84138.0,84137.0,0.232225]
[1744830385721,0.0594253,84138.0,84137.0,0.1728]
[1744830385919,0.1188584,84133.0,84132.0,0.118858]
[1744830386130,0.1188584,84133.0,84132.0,0.202458]
[1744830386323,0.2009584,84133.0,84132.0,0.288558]
[1744830387026,0.2009584,84133.0,84132.0,0.293558]
[1744830387227,0.2009584,84133.0,84132.0,0.296558]
[1744830387433,0.20986502,84133.0,84132.0,0.296558]
[1744830389225,0.0001782,84140.0,84139.0,0.1188485]
[1744830389426,0.1190253,84140.0,84139.0,0.1188485]
[1744830389625,0.1190253,84140.0,84139.0,0.2849485]
[1744830390028,0.12809068,84140.0,84139.0,0.2849485]
[1744830390224,0.12809068,84140.0,84139.0,0.0806]
[1744830390529,0.1188598,84131.0,84130.0,0.0001458]
[1744830390734,0.1782974,84129.0,84128.0,0.1188628]
[1744830391138,0.1467319,84129.0,84128.0,0.1188628]
[1744830391734,0.1467319,84129.0,84128.0,0.12155241]
[1744830392328,0.1467319,84129.0,84128.0,0.20975241]
[1744830393341,0.16066384,84129.0,84128.0,0.21375241]
[1744830393840,0.07336384,84129.0,84128.0,0.21375241]
[1744830395834,0.15956384,84129.0,84128.0,0.21375241]
[1744830397038,0.15956384,84129.0,84128.0,0.09488961]
[1744830397238,0.24026384,84129.0,84128.0,0.21375371]
[1744830397632,0.24026384,84129.0,84128.0,0.21383371]
[1744830397837,0.24026384,84129.0,84128.0,0.09496961]
[1744830398947,0.15956384,84129.0,84128.0,0.21383371]
[1744830400036,0.07336384,84129.0,84128.0,0.21383371]
[1744830401147,0.00924358,84140.0,84135.0,0.0594268]
[1744830401342,0.21239378,84140.0,84139.0,0.1188485]
[1744830402342,0.12809378,84140.0,84139.0,0.1188485]
[1744830402542,0.00924358,84140.0,84139.0,0.1218485]
[1744830402734,0.14209953,84140.0,84139.0,0.1218485]
[1744830402934,0.1190253,84140.0,84139.0,0.2901485]
[1744830403232,0.1190253,84140.0,84139.0,0.2921485]
[1744830404545,0.13272653,84140.0,84139.0,0.1733]
[1744830404941,0.13272653,84140.0,84139.0,0.2921485]
[1744830405339,0.13272653,84140.0,84139.0,0.1733]
[1744830405541,0.14169604,84140.0,84139.0,0.1733]
[1744830405734,0.14169604,84140.0,84139.0,0.005]
[1744830406137,0.14169604,84140.0,84139.0,0.00508]
[1744830406342,0.30509604,84140.0,84139.0,0.00508]
[1744830406653,0.30509604,84140.0,84139.0,0.00086833]
[1744830407040,0.30509604,84140.0,84139.0,0.00078833]
[1744830407240,0.30509604,84140.0,84139.0,9.049e-05]
[1744830407850,0.1188556,84134.0,84133.0,0.000108]
[1744830408051,0.1188626,84129.0,84128.0,0.00268961]
[1744830408853,0.2858626,84129.0,84128.0,0.00268961]
[1744830409048,0.6466626,84129.0,84128.0,0.00268961]
[1744830409864,0.6466626,84129.0,84128.0,0.00676961]
[1744830411149,0.6466626,84129.0,84122.0,0.000108]
[1744830411150,0.1188711,84123.0,84122.0,0.000108]
[1744830411347,0.0594348,84125.0,84121.0,0.00511165]
[1744830411348,0.1188725,84122.0,84121.0,0.00511165]
[1744830411547,0.2040725,84122.0,84121.0,0.00511165]
[1744830412757,0.2040725,84122.0,84121.0,0.00519165]
[1744830413560,0.118881,84116.0,84115.0,0.0871]
[1744830413853,0.1188867,84112.0,84111.0,0.000108]
[1744830414055,0.1188909,84109.0,84108.0,0.0851]
[1744830414255,0.1288909,84109.0,84108.0,0.000108]
[1744830414460,0.1188994,84104.0,84103.0,0.0594496]
[1744830414650,0.1288994,84104.0,84103.0,0.0594496]
[1744830414846,0.1188994,84103.0,84102.0,0.2039999]
[1744830415056,0.1288994,84103.0,84102.0,0.2039999]
[1744830415260,0.1288994,84103.0,84102.0,0.0851]
[1744830415660,0.1288994,84103.0,84102.0,0.2040008]
[1744830416048,0.1288994,84103.0,84102.0,0.2080008]
[1744830416252,0.1288994,84103.0,84102.0,0.2140008]
[1744830417665,0.1288994,84103.0,84102.0,0.0951]
[1744830417962,0.22406129,84103.0,84102.0,0.0951]
[1744830419659,0.14306129,84103.0,84102.0,0.1289008]
[1744830419861,0.14306129,84103.0,84102.0,0.01]
[1744830420170,0.1189079,84097.0,84096.0,0.0001458]
[1744830420357,0.1189093,84096.0,84095.0,0.00511323]
[1744830420558,0.2884093,84096.0,84095.0,0.00511323]
[1744830420859,0.1189263,84084.0,84083.0,0.086]
[1744830421063,0.1289263,84084.0,84083.0,0.086]
[1744830421250,0.1189319,84080.0,84079.0,0.0001458]
[1744830421558,0.1189319,84080.0,84073.0,0.0823]
[1744830421559,0.1189404,84074.0,84073.0,0.0823]
[1744830421763,0.1289404,84074.0,84073.0,0.0823]
[1744830422164,0.1289404,84074.0,84073.0,8e-05]
[1744830422565,0.1189461,84070.0,84069.0,0.00511482]
[1744830422759,0.24625392,84070.0,84069.0,0.00511482]
[1744830422970,0.24625392,84070.0,84069.0,0.20636232]
[1744830423156,0.24625392,84070.0,84069.0,0.08749482]
[1744830423769,0.24625392,84070.0,84069.0,0.00519482]
[1744830423770,0.60705392,84070.0,84069.0,0.00519482]
[1744830423962,0.60705392,84070.0,84069.0,0.00511482]
[1744830424159,0.60705392,84070.0,84049.0,0.4781907]
[1744830424160,0.73810782,84070.0,84061.0,0.000108]
[1744830424360,0.1189744,84050.0,84049.0,0.36937148]
[1744830424559,0.1289744,84050.0,84049.0,0.36937148]
[1744830424960,0.1289744,84050.0,84049.0,0.48834728]
[1744830425160,0.1289744,84050.0,84049.0,0.36937148]
[1744830425361,0.1289744,84050.0,84043.0,0.48363457]
[1744830425362,0.1189829,84044.0,84043.0,0.48363457]
[1744830425560,0.4897829,84044.0,84043.0,0.48363457]
[1744830425869,0.1289829,84044.0,84043.0,0.60261887]
[1744830426463,0.1289829,84044.0,84043.0,0.1241007]
[1744830426663,0.00017842,84052.0,84044.0,0.059491]
[1744830426858,0.00017842,84052.0,84051.0,0.118973]
[1744830427056,0.11914992,84052.0,84051.0,0.118973]
[1744830427470,0.00017842,84052.0,84051.0,0.128973]
[1744830427669,0.00017842,84052.0,84051.0,0.572073]
[1744830427965,0.11914992,84052.0,84051.0,0.572073]
[1744830428170,0.00017842,84052.0,84051.0,0.572073]
[1744830428667,0.01409952,84059.0,84058.0,0.118963]
[1744830428869,0.1189616,84059.0,84058.0,0.1784428]
[1744830429174,0.09448782,84070.0,84062.0,0.0594782]
[1744830429175,0.00878782,84070.0,84062.0,0.0594782]
[1744830429468,0.30495445,84090.0,84062.0,0.0594782]
[1744830429469,0.1784174,84073.0,84072.0,0.1189418]
[1744830429668,0.1784174,84073.0,84072.0,0.1589418]
[1744830429869,0.20133778,84073.0,84072.0,0.04]
[1744830430061,0.20133778,84073.0,84072.0,0.0851]
[1744830430462,0.20133778,84073.0,84072.0,0.08518]
[1744830431367,0.1189531,84065.0,84064.0,0.00017842]
[1744830432165,0.2901531,84065.0,84064.0,0.00017842]
[1744830432373,0.3721531,84065.0,84064.0,0.00017842]
[1744830432569,0.3731531,84065.0,84064.0,0.00017842]
[1744830432770,0.0594786,84063.0,84047.0,0.000108]
[1744830432967,0.1189772,84048.0,84047.0,0.02687746]
[1744830433272,0.1189829,84044.0,84043.0,0.1241007]
[1744830433460,0.1189829,84044.0,84043.0,0.1341007]
[1744830433660,0.1189829,84044.0,84043.0,0.0151164]
[1744830433862,0.1189829,84044.0,84043.0,0.1341007]
[1744830434763,0.1784708,84048.0,84047.0,0.1189786]
[1744830434963,0.1784708,84048.0,84047.0,0.4797786]
[1744830435670,0.1784708,84048.0,84043.0,0.0081164]
[1744830435876,0.1784734,84046.0,84045.0,0.1189809]
[1744830436263,0.1189829,84044.0,84043.0,0.0081964]
[1744830436869,0.2007829,84044.0,84043.0,0.0081964]
[1744830437065,0.2007829,84044.0,84043.0,0.0051164]
[1744830437371,0.2007829,84044.0,84043.0,0.1241807]
[1744830437962,0.2017829,84044.0,84043.0,0.1241807]
[1744830438576,0.2017829,84044.0,84043.0,0.0051964]
[1744830438577,0.2027829,84044.0,84043.0,0.0051964]
[1744830439072,0.2027829,84044.0,84043.0,0.0051164]
[1744830439277,0.2027829,84044.0,84043.0,0.0051964]
[1744830439983,0.2027829,84044.0,84043.0,0.1241807]
[1744830440274,0.002,84044.0,84043.0,0.1241807]
[1744830440467,0.002,84044.0,84043.0,0.4849807]
[1744830440669,0.002,84044.0,84043.0,0.5449807]
[1744830441174,0.00017842,84052.0,84051.0,0.118973]
[1744830441374,0.0594748,84068.0,84061.0,0.1189588]
[1744830441573,0.20895441,84062.0,84061.0,0.1789588]
[1744830441773,0.08999701,84062.0,84061.0,0.5397588]
[1744830442670,0.20895441,84062.0,84061.0,0.5397588]
[1744830442874,0.20895441,84062.0,84061.0,0.4208]
[1744830442875,0.20995441,84062.0,84061.0,0.4208]
[1744830443077,0.20995441,84062.0,84061.0,0.42088]
[1744830443275,0.20995441,84062.0,84061.0,0.13838]
[1744830443481,0.20995441,84062.0,84061.0,0.0783]
[1744830443673,0.20995441,84062.0,84061.0,0.07838]
[1744830443873,0.1199574,84062.0,84061.0,0.0783]
[1744830444082,0.2023574,84062.0,84061.0,0.1972588]
[1744830444279,0.2023574,84062.0,84061.0,0.1982588]
[1744830444782,0.2023574,84062.0,84061.0,0.1973388]
[1744830445489,0.2053574,84062.0,84061.0,0.1973388]
[1744830445881,0.1189574,84062.0,84061.0,0.1973388]
[1744830446077,0.003,84062.0,84061.0,0.1973388]
[1744830446283,0.1219574,84062.0,84061.0,0.1973388]
[1744830446781,0.1229574,84062.0,84061.0,0.1973388]
[1744830447382,0.1199574,84062.0,84061.0,0.1973388]
[1744830447585,0.1219574,84062.0,84061.0,0.1973388]
[1744830447772,0.1229574,84062.0,84061.0,0.1973388]
[1744830447974,0.1199574,84062.0,84061.0,0.1973388]
[1744830448174,0.1219574,84062.0,84061.0,0.1973388]
[1744830448373,0.1209574,84062.0,84061.0,0.1973388]
[1744830448685,0.1239574,84062.0,84061.0,8e-05]
[1744830448869,0.1834367,84062.0,84061.0,0.1189588]
[1744830449068,0.1834367,84062.0,84061.0,0.1190388]
[1744830449484,0.1834367,84062.0,84061.0,0.2840388]
[1744830449784,0.1834367,84062.0,84061.0,0.16508]
[1744830449977,0.1834367,84062.0,84061.0,0.07878]
[1744830450479,0.1804367,84062.0,84061.0,8e-05]
[1744830450681,0.1814367,84062.0,84061.0,8e-05]
[1744830450882,0.1834367,84062.0,84061.0,8e-05]
[1744830451982,0.3430367,84062.0,84061.0,8e-05]
[1744830452183,0.3450367,84062.0,84061.0,8e-05]
[1744830452487,0.3450367,84062.0,84055.0,0.081]
[1744830452488,0.1189659,84056.0,84055.0,0.081]
[1744830453695,0.1189659,84056.0,84055.0,0.1999673]
[1744830453986,0.1209659,84056.0,84055.0,0.1999673]
[1744830454381,0.40274202,84056.0,84055.0,0.1999673]
[1744830454577,0.40074202,84056.0,84055.0,0.1999673]
[1744830454782,0.40274202,84056.0,84055.0,0.1999673]
[1744830456188,0.118973,84051.0,84050.0,0.4797744]
[1744830456488,0.118973,84051.0,84050.0,0.5935744]
[1744830456687,0.118973,84051.0,84050.0,0.5936544]
[1744830457388,0.120973,84051.0,84050.0,0.5936544]
[1744830457580,0.204973,84051.0,84050.0,0.5936544]
[1744830457880,0.003,84051.0,84050.0,0.5936544]
[1744830458590,0.121973,84051.0,84050.0,0.5936544]
[1744830458985,0.003,84051.0,84050.0,0.5936544]
[1744830459884,0.002,84051.0,84050.0,0.5936544]
[1744830460491,0.09077042,84055.0,84054.0,0.1189687]
[1744830460677,0.09077042,84055.0,84054.0,0.1989687]
[1744830461377,0.09077042,84055.0,84054.0,0.2767687]
[1744830462287,0.20973022,84061.0,84060.0,0.1189602]
[1744830462885,0.20973022,84061.0,84060.0,0.2763602]
[1744830463791,0.21273022,84061.0,84060.0,0.2763602]
[1744830464485,0.0594839,84055.0,84051.0,0.1189714]
[1744830464684,0.1784565,84054.0,84053.0,0.1189687]
[1744830464893,0.059485,84054.0,84053.0,0.2089687]
[1744830465087,0.059485,84054.0,84053.0,0.2090487]
[1744830465482,0.09377042,84061.0,84054.0,0.059484]
[1744830465679,0.21273162,84061.0,84060.0,0.1189602]
[1744830466078,0.118963,84059.0,84058.0,0.1189625]
[1744830466283,0.1784502,84057.0,84056.0,0.1189653]
[1744830466478,0.0594829,84057.0,84056.0,0.1289653]
[1744830466892,0.1379829,84057.0,84056.0,0.1289653]
[1744830467191,0.2214829,84057.0,84056.0,0.1289653]
[1744830467380,0.2264829,84057.0,84056.0,0.1290453]
[1744830468078,0.2264829,84057.0,84056.0,0.1190453]
[1744830468783,0.2234829,84057.0,84056.0,0.1190453]
[1744830468984,0.2264829,84057.0,84056.0,0.1190453]
[1744830469785,0.2244829,84057.0,84056.0,0.1190453]
[1744830469982,0.2254829,84057.0,84056.0,0.1190453]
[1744830470188,0.27466629,84057.0,84056.0,0.1190453]
[1744830471186,0.27466629,84057.0,84056.0,8e-05]
[1744830471387,0.1189659,84056.0,84055.0,0.1189666]
[1744830471784,0.2787659,84056.0,84055.0,0.1189666]
[1744830472495,0.2797659,84056.0,84055.0,0.1189666]
[1744830473487,0.2817659,84056.0,84055.0,0.1189666]
[1744830474284,0.118973,84051.0,84050.0,0.4797728]
[1744830474586,0.118973,84051.0,84050.0,0.4798528]
[1744830475188,0.280173,84051.0,84050.0,0.4798528]
[1744830475596,0.199873,84051.0,84050.0,0.5593528]
[1744830476193,0.200873,84051.0,84050.0,0.5593528]
[1744830478097,0.32182489,84051.0,84050.0,0.5593528]
[1744830479490,0.20285189,84051.0,84050.0,0.5593528]
[1744830479691,0.32182489,84051.0,84050.0,0.5893528]
[1744830479995,0.12195189,84051.0,84050.0,0.5893528]
[1744830480398,0.24092489,84051.0,84050.0,0.5893528]
[1744830480584,0.19935189,84051.0,84050.0,0.5893528]
[1744830480785,0.31832489,84051.0,84050.0,0.5893528]
[1744830482089,0.196373,84051.0,84050.0,0.03008]
[1744830482300,0.1189829,84044.0,84043.0,0.00529482]
[1744830482604,0.4797829,84044.0,84043.0,0.00537482]
[1744830482995,0.4797829,84044.0,84043.0,0.0005338]
[1744830483200,0.6366829,84044.0,84043.0,0.0005338]
[1744830483401,0.6366829,84044.0,84043.0,0.0004538]
[1744830483807,0.6366829,84044.0,84043.0,0.0005338]
[1744830483997,0.6366829,84044.0,84043.0,0.0004538]
[1744830484198,0.6366829,84044.0,84043.0,0.00015838]
[1744830484400,0.1190013,84032.0,84030.0,0.000108]
[1744830484604,0.1569,84031.0,84030.0,0.1491093]
[1744830484800,0.2759013,84031.0,84030.0,0.1491093]
[1744830485001,0.3608,84035.0,84034.0,0.118997]
[1744830485313,0.3618,84044.0,84038.0,0.1189914]
[1744830485314,0.077,84039.0,84038.0,0.1189914]
[1744830486110,0.001,84044.0,84043.0,0.1189843]
[1744830486617,0.1977829,84044.0,84043.0,0.1189843]
[1744830486812,0.09252727,84044.0,84043.0,0.2813843]
[1744830487012,0.4114,84048.0,84047.0,0.1189786]
[1744830487208,0.1977749,84050.0,84049.0,0.118973]
[1744830487408,0.1189749,84050.0,84049.0,0.198973]
[1744830487613,0.1189749,84050.0,84049.0,0.281373]
[1744830487817,0.00017842,84052.0,84051.0,0.118973]
[1744830487818,0.11915092,84052.0,84051.0,0.118973]
[1744830488207,0.00017842,84052.0,84051.0,0.118973]
[1744830489215,0.0136563,84052.0,84051.0,0.118973]
[1744830489519,0.1346278,84052.0,84051.0,0.118973]
[1744830489912,0.1356278,84052.0,84051.0,0.118973]
[1744830490421,0.1336278,84052.0,84051.0,0.118973]
[1744830490610,0.1346278,84052.0,84051.0,0.118973]
[1744830490811,0.1356278,84052.0,84051.0,0.118973]
[1744830491014,0.0166563,84052.0,84051.0,0.118973]
[1744830491413,0.1346278,84052.0,84051.0,0.118973]
[1744830491612,0.1356278,84052.0,84051.0,0.118973]
[1744830492523,0.0146563,84052.0,84051.0,0.118973]
[1744830492723,2e-08,84052.0,84051.0,0.128973]
[1744830493025,0.10784,84069.0,84067.0,0.1189503]
[1744830493327,0.118948,84069.0,84067.0,0.1189503]
[1744830494022,0.16431471,84068.0,84067.0,0.1189503]
[1744830494223,0.16431471,84068.0,84067.0,0.2748503]
[1744830494422,0.28326361,84068.0,84067.0,0.2748503]
[1744830494811,0.16631471,84068.0,84067.0,0.2748503]
[1744830495015,0.15270607,84068.0,84067.0,0.3148503]
[1744830495320,0.005,84072.0,84071.0,0.1189447]
[1744830495521,0.005,84072.0,84071.0,0.2789447]
[1744830496513,0.005,84072.0,84071.0,0.2790247]
[1744830496514,0.1239432,84072.0,84071.0,0.2790247]
[1744830497422,0.005,84072.0,84071.0,0.2790247]
[1744830497817,0.006,84072.0,84071.0,0.2790247]
[1744830498614,0.007,84072.0,84071.0,0.2790247]
[1744830499221,0.005,84072.0,84071.0,0.2790247]
[1744830499613,0.005,84072.0,84071.0,0.4405247]
[1744830499813,0.005,84072.0,84071.0,0.4415247]
[1744830500024,0.005,84072.0,84071.0,0.4425247]
[1744830502326,0.005,84072.0,84071.0,0.4415247]
[1744830502619,0.0595385,84091.0,84071.0,0.4415247]
[1744830502620,0.013435,84080.0,84076.0,0.0594681]
[1744830502820,0.013435,84080.0,84079.0,0.4797333]
[1744830503020,0.059459,84090.0,84089.0,0.1189178]
[1744830503633,0.1189157,84092.0,84091.0,0.1189149]
[1744830503832,0.12795266,84092.0,84091.0,0.1189149]
[1744830504030,0.02274276,84092.0,84091.0,0.1189149]
[1744830504219,8e-05,84093.0,84091.0,0.2073149]
[1744830504416,0.1189149,84092.0,84091.0,0.1289149]
[1744830504724,0.059463,84086.0,84083.0,0.1189248]
[1744830504924,0.1189277,84084.0,84083.0,0.178388]
[1744830505124,0.1189277,84084.0,84083.0,0.178468]
[1744830505431,0.2006277,84084.0,84083.0,0.178388]
[1744830505722,0.2006277,84084.0,84083.0,0.178468]
[1744830506625,0.2026277,84084.0,84083.0,0.178468]
[1744830506822,0.2848277,84084.0,84083.0,0.178468]
[1744830507221,0.2838277,84084.0,84083.0,0.178468]
[1744830507422,0.2858277,84084.0,84083.0,0.178468]
[1744830508224,0.1669,84084.0,84083.0,0.178468]
[1744830508426,0.0852,84084.0,84083.0,0.178468]
[1744830508827,0.0842,84084.0,84083.0,0.178468]
[1744830509029,0.0852,84084.0,84083.0,0.178468]
[1744830509244,0.003,84084.0,84083.0,0.228468]
[1744830510232,0.002,84084.0,84083.0,0.228468]
[1744830510733,0.0828,84087.0,84086.0,0.1189234]
[1744830510934,0.0828,84087.0,84086.0,0.1489234]
[1744830511135,0.0805,84088.0,84087.0,0.118922]
[1744830511329,0.0805,84088.0,84087.0,0.158922]
[1744830512428,0.1189206,84088.0,84087.0,0.158922]
[1744830512632,0.02274666,84092.0,84091.0,0.1189164]
[1744830512832,8e-05,84093.0,84092.0,0.1189149]
[1744830513039,0.059456,84095.0,84094.0,0.1783626]
[1744830513231,0.118912,84095.0,84094.0,0.1783626]
[1744830513632,0.059456,84095.0,84094.0,0.1783626]
[1744830514538,0.07322554,84095.0,84094.0,0.1783626]
[1744830514738,0.07422554,84095.0,84094.0,0.1783626]
[1744830514936,0.01576954,84095.0,84094.0,0.1783626]
[1744830515141,0.01576954,84095.0,84094.0,0.1883626]
[1744830515334,0.01576954,84095.0,84094.0,0.1884426]
[1744830515540,0.02449485,84095.0,84094.0,0.1884426]
[1744830515731,0.1219907,84095.0,84094.0,0.1883626]
[1744830516036,0.1219107,84095.0,84094.0,0.1883626]
[1744830516237,0.12384484,84095.0,84094.0,0.1883626]
[1744830516542,0.13615569,84095.0,84094.0,0.1883626]
[1744830517339,0.13415569,84095.0,84094.0,0.1883626]
[1744830517836,0.13515569,84095.0,84094.0,0.1883626]
[1744830518043,0.13615569,84095.0,84094.0,0.1883626]
[1744830518543,0.0594567,84094.0,84090.0,0.4797163]
[1744830518745,0.1189164,84092.0,84091.0,0.1189154]
[1744830519145,0.1189164,84092.0,84091.0,0.2840154]
[1744830519547,0.2009164,84092.0,84091.0,0.2840154]
[1744830520145,0.082,84092.0,84091.0,0.2840154]
[1744830520341,0.02621929,84095.0,84094.0,0.1189121]
[1744830520546,0.14512999,84095.0,84094.0,0.1189121]
[1744830520949,0.14312999,84095.0,84094.0,0.1189121]
[1744830521749,0.14412999,84095.0,84094.0,0.1189121]
[1744830522048,0.14512999,84095.0,84094.0,0.1189121]
[1744830522235,0.14319585,84095.0,84094.0,0.1189121]
[1744830522435,0.14219585,84095.0,84094.0,0.1189121]
[1744830522639,0.0109743,84095.0,84094.0,0.1189121]
[1744830522946,0.00208,84095.0,84094.0,0.1389121]
[1744830523145,0.00208,84095.0,84094.0,0.3818121]
[1744830523551,0.00517842,84098.0,84097.0,0.1189079]
[1744830523748,0.00517842,84098.0,84097.0,0.2589079]
[1744830523939,0.00711256,84098.0,84097.0,0.2589079]
[1744830524557,0.0091015,84102.0,84097.0,0.1994532]
[1744830524743,0.0091015,84102.0,84101.0,0.4797022]
[1744830524937,0.00014581,84103.0,84101.0,0.4797022]
[1744830524938,0.00026573,84107.0,84101.0,0.5208]
[1744830525144,0.1188822,84116.0,84115.0,0.118881]
[1744830525338,0.13204298,84116.0,84115.0,0.118881]
[1744830525743,0.13212298,84116.0,84115.0,0.118881]
[1744830526045,0.14111651,84116.0,84115.0,0.118881]
[1744830526247,0.1783328,84112.0,84111.0,0.1188867]
[1744830526446,0.0594433,84112.0,84111.0,0.1188867]
[1744830526748,0.1399433,84112.0,84111.0,0.1188867]
[1744830527050,0.2212433,84112.0,84111.0,0.1188867]
[1744830527242,0.1618,84112.0,84111.0,0.1188867]
[1744830527645,0.2806867,84112.0,84111.0,0.1188867]
[1744830527848,0.0843,84112.0,84111.0,0.1188867]
[1744830528143,0.0883,84112.0,84111.0,0.1188867]
[1744830529240,0.08838,84112.0,84111.0,0.1188867]
[1744830529443,0.13753005,84112.0,84111.0,0.1188867]
[1744830529647,0.25641675,84112.0,84111.0,0.1188867]
[1744830532049,0.1188895,84110.0,84109.0,0.3608]
[1744830532247,0.1188923,84108.0,84097.0,0.0594536]
[1744830532448,0.1188923,84108.0,84090.0,0.0806]
[1744830532449,0.1613,84109.0,84092.0,0.01]
[1744830532648,0.1189135,84093.0,84092.0,0.0595647]
[1744830532848,0.1189135,84093.0,84092.0,0.0594567]
[1744830533155,0.1189135,84093.0,84092.0,0.0595367]
[1744830533655,0.2751135,84093.0,84092.0,0.0595367]
[1744830534555,0.2751135,84093.0,84092.0,0.0605367]
[1744830535158,0.2751135,84093.0,84092.0,0.0615367]
[1744830535347,0.2751135,84093.0,84092.0,0.0605367]
[1744830535548,0.2751135,84093.0,84092.0,0.0595367]
[1744830536857,0.2761135,84093.0,84092.0,0.0595367]
[1744830538055,0.2771135,84093.0,84092.0,0.0595367]
[1744830538958,0.2781135,84093.0,84092.0,0.0595367]
[1744830540256,0.2781135,84093.0,84092.0,8e-05]
[1744830540448,0.1189248,84085.0,84084.0,0.11910252]
[1744830540646,0.1189248,84085.0,84084.0,0.11921272]
[1744830540851,0.1189248,84085.0,84084.0,0.00017842]
[1744830541056,0.13236255,84085.0,84084.0,0.00017842]
[1744830541249,0.29936255,84085.0,84084.0,0.00025842]
[1744830542157,0.29936255,84085.0,84084.0,0.00017842]
[1744830542352,0.29936255,84085.0,84084.0,0.00025842]
[1744830542543,0.30336255,84085.0,84084.0,0.00025842]
[1744830543062,0.30336255,84085.0,84084.0,0.11918472]
[1744830543658,0.10403775,84085.0,84084.0,0.11918472]
[1744830543960,0.22296255,84085.0,84084.0,0.11918472]
[1744830544147,0.2721304,84085.0,84084.0,0.11918472]
[1744830544350,0.05316785,84085.0,84084.0,0.28178472]
[1744830544551,0.4114,84107.0,84100.0,0.1189036]
[1744830544751,0.0796,84106.0,84100.0,0.1189036]
[1744830544958,0.11908062,84101.0,84100.0,0.4797036]
[1744830545262,0.11908062,84101.0,84099.0,0.0814]
[1744830545263,0.1189036,84100.0,84099.0,0.200305]
[1744830545560,0.1985036,84100.0,84099.0,0.200305]
[1744830545758,0.28941233,84100.0,84099.0,0.0814]
[1744830546771,0.28941233,84100.0,84099.0,0.200305]
[1744830547062,0.29041233,84100.0,84099.0,0.200305]
[1744830548758,0.29041233,84100.0,84099.0,0.201305]
[1744830548954,0.29041233,84100.0,84099.0,0.001]
[1744830549150,0.29041233,84100.0,84076.0,0.360908]
[1744830549151,0.1189362,84077.0,84076.0,0.000108]
[1744830549352,0.1189461,84070.0,84067.0,0.1189494]
[1744830549561,0.4897461,84070.0,84069.0,0.12406232]
[1744830549754,0.4897461,84070.0,84069.0,0.00511482]
[1744830551355,0.4917461,84070.0,84069.0,0.00511482]
[1744830551560,0.4917461,84070.0,84069.0,0.12406232]
[1744830552156,0.1309461,84070.0,84069.0,0.12406232]
[1744830552354,0.01111666,84070.0,84069.0,0.12406232]
[1744830552655,0.01111666,84070.0,84069.0,0.29276232]
[1744830552854,0.13206276,84070.0,84069.0,0.29276232]
[1744830553051,0.13206276,84070.0,84069.0,0.08451482]
[1744830553052,0.49286276,84070.0,84069.0,0.08451482]
[1744830553356,0.49286276,84070.0,84069.0,0.00511482]
[1744830553563,0.49086276,84070.0,84069.0,0.00519482]
[1744830553763,0.65346276,84070.0,84069.0,0.00519482]
[1744830554270,0.65446276,84070.0,84069.0,0.00519482]
[1744830554455,0.65346276,84070.0,84069.0,0.00519482]
[1744830554669,0.65346276,84070.0,84069.0,0.12414232]
[1744830555355,0.65346276,84070.0,84069.0,0.00519482]
[1744830555849,0.65246276,84070.0,84069.0,0.00519482]
[1744830556054,0.65346276,84070.0,84069.0,0.00519482]
[1744830556354,0.65346276,84070.0,84069.0,0.00511482]
[1744830556754,0.65346276,84070.0,84069.0,0.00519482]
[1744830556949,0.65246276,84070.0,84069.0,0.00519482]
[1744830557155,0.65346276,84070.0,84069.0,0.00519482]
[1744830559073,0.65346276,84070.0,84069.0,0.12414232]
[1744830559262,0.56976276,84070.0,84069.0,0.12414232]
[1744830560465,0.56876276,84070.0,84069.0,0.12414232]
[1744830560653,0.56976276,84070.0,84069.0,0.12414232]
[1744830561861,0.37191666,84070.0,84069.0,0.12414232]
[1744830562369,0.49086276,84070.0,84069.0,0.12414232]
[1744830562759,0.48986276,84070.0,84069.0,0.12414232]
[1744830563062,0.49086276,84070.0,84069.0,0.12414232]
[1744830563658,0.48986276,84070.0,84069.0,0.12414232]
[1744830563971,0.48886276,84070.0,84069.0,0.12414232]
[1744830564366,0.48886276,84070.0,84069.0,0.00519482]
[1744830564660,0.0594818,84058.0,84032.0,0.00035872]
[1744830564862,0.1189772,84048.0,84047.0,0.2003771]
[1744830565158,0.1189772,84048.0,84047.0,0.2848771]
[1744830565757,0.1189772,84048.0,84047.0,0.2849571]
[1744830566155,0.1189772,84048.0,84047.0,0.16598]
[1744830566360,0.1189772,84048.0,84047.0,0.08458]
[1744830566665,0.2005772,84048.0,84047.0,0.2055586]
[1744830567063,0.21368709,84048.0,84047.0,0.2054786]
[1744830567259,0.21368709,84048.0,84047.0,0.2095586]
[1744830567861,0.01310989,84048.0,84047.0,0.2095586]
[1744830568061,0.3608,84052.0,84050.0,0.118973]
[1744830568257,0.0594865,84051.0,84050.0,0.118973]
[1744830568458,0.1189736,84051.0,84050.0,0.118973]
[1744830568657,0.2061736,84051.0,84050.0,0.118973]
[1744830568859,0.3608,84052.0,84051.0,0.118973]
[1744830569060,0.3608,84052.0,84051.0,0.128973]
[1744830569853,0.00017842,84056.0,84055.0,0.1189673]
[1744830570053,0.12030359,84065.0,84064.0,0.1189546]
[1744830570257,0.12030359,84065.0,84064.0,0.1889546]
[1744830571155,0.23925669,84065.0,84064.0,0.1889546]
[1744830571556,0.23925669,84065.0,84064.0,0.1919546]
[1744830571965,0.60005669,84065.0,84064.0,0.1919546]